Cogmind - Beta 13 @@@ ROGUE MODE // 2024.04.02 @ 23:46:12 Player: Olafz Result: Destroyed by as-63391 with Assembled Blade Performance ------------- Evolutions (0) 0 Regions Visited (2) 400 Robots Destroyed (27) 135 Value Destroyed (412) 412 Prototype IDs (0) 0 Alien Tech Used (0) 0 Bonus (0) 0 TOTAL SCORE: 947 Bonus ------- None Cogmind --------- Core Integrity 0/250 Matter 285/300 Energy 100/100 System Corruption 0% Temperature Cool (0) Movement Walking (120) Location -10/Mines Parts ------- > --- POWER (1) -------- (None) > --- PROPULSION (2) --- Aluminum Leg > --- UTILITY (2) ------ Sensor Array Signal Interpreter > --- WEAPON (2) ------- Makeshift Shrapnel Gun > --- INVENTORY (5) ---- Visual Processing Unit Visual Processing Unit Signal Interpreter Peak State ------------ > --- POWER ------------ Ion Engine > --- PROPULSION ------- Aluminum Leg Aluminum Leg > --- UTILITY ---------- Small Storage Unit Improved Terrain Scanner > --- WEAPON ----------- Assault Rifle Light Assault Rifle > --- INVENTORY -------- Light Ion Engine [Rating: 9] Favorites ----------- Power Ion Engine Engine Ion Engine Propulsion Aluminum Leg Leg Aluminum Leg Hover Unit Hover Unit Utility Small Storage Unit Device Improved Terrain Scanner Storage Small Storage Unit Processor Signal Interpreter Weapon Assault Rifle Ballistic Gun Assault Rifle Build | -11 -10 -10 ------- Run | Yrd Mat Min Slots Evolved . | . . . Power . | . . . Propulsion . | . . . Utility . | . . . Weapon . | . . . Parts Attached 15 | 7 5 3 Power 2 | 1 . 1 Engine 2 | 1 . 1 Core . | . . . Reactor . | . . . Propulsion 6 | 2 3 1 Treads . | . . . Leg 4 | 2 1 1 Wheel . | . . . Hover 2 | . 2 . Flight . | . . . Utility 4 | 2 2 . Device 2 | 1 1 . Storage 1 | 1 . . Processor 1 | . 1 . Hackware . | . . . Protection . | . . . Artifact . | . . . Weapon 3 | 2 . 1 Energy Gun . | . . . Energy Cannon . | . . . Ballistic Gun 3 | 2 . 1 Ballistic Cannon . | . . . Launcher . | . . . Special Weapon . | . . . Impact Weapon . | . . . Slashing Weapon . | . . . Piercing Weapon . | . . . Special Melee Weapon . | . . . Unidentified Prototypes . | . . . Parts Lost 6 | . . 6 Power 2 | . . 2 Propulsion 2 | . . 2 Utility . | . . . Weapon 2 | . . 2 Highest Loss Streak 6 | . . 6 To Critical Strikes . | . . . Average Slot Usage (%) 83 | . 98 65 Engine 9 | . 14 2 Leg 17 | . 23 9 Hover 5 | . 3 6 Device 13 | . 13 14 Storage 5 | . 8 . Processor 8 | . 4 14 Ballistic Gun 23 | . 28 16 Naked Turns . | . . . Heaviest Build 14 | 14 14 9 Greatest Support 20 | 20 20 12 Greatest Overweight (x) 2 | . 2 1 Average Overweight (x) . | . . . Largest Inventory Capacity 8 | 8 8 5 Average Capacity 6 | 7 6 5 Most Carried 5 | 1 5 4 Average Carried 1 | . 1 3 Final Capacity 8 | 8 5 5 Final Carried 4 | 1 4 3 Class Distribution -------------------- 89% | Mutant 10% | Scavenger-Mutant Dominant Class ---------------- Mutant | -10/Materials Mutant | -10/Mines Resources | -11 -10 -10 ----------- Run | Yrd Mat Min Matter Collected 729 | 335 255 139 Remotely . | . . . Salvage Created 738 | 256 305 177 Parts 56 | 25 27 4 Haulers Intercepted . | . . . Recyclers Shooed 1 | . 1 . Parts Field Recycled . | . . . Retrieved Matter . | . . . Parts Self-Destructed . | . . . Prevented . | . . . Kills | -11 -10 -10 ------- Run | Yrd Mat Min Combat Hostiles Destroyed 7 | . 3 4 Guns 7 | . 3 4 Classes Destroyed 6 | 3 3 . Worker 5 | 2 3 . Builder 1 | . 1 . Tunneler 11 | 9 2 . Recycler 1 | 1 . . Watcher 2 | . 2 . Grunt 7 | . 3 4 Best Kill Streak 7 | 7 4 2 Combat Bots Only 2 | . 1 2 Max Kills in Single Turn 1 | 1 1 1 Gunslinging . | . . . Exploded . | . . . Melee . | . . . Uniques/NPCs Destroyed . | . . . Combat | -11 -10 -10 -------- Run | Yrd Mat Min Hostile Shots Fired 82 | . 22 60 Missed 19 | . 2 17 Damage Taken 829 | . 263 566 Core 263 | . 40 223 Absorbed by Shields . | . . . Core Remaining (%) 100 | 100 . . Volleys Fired 107 | 41 38 28 Largest 2 | 2 2 2 Hottest 40 | 40 40 40 Shots Fired 202 | 82 76 44 Gun 202 | 82 76 44 Cannon . | . . . Launcher . | . . . Special . | . . . Kinetic 202 | 82 76 44 Thermal . | . . . Explosive . | . . . Electromagnetic . | . . . Robot Hit Streak 11 | 8 6 11 Robot Miss Streak 5 | 5 3 5 Penetration Max . | . . . Secondary Targets . | . . . Shots Hit Robots 124 | 46 42 36 Core Hits 48 | 16 21 11 Critical Kills . | . . . Critical Parts Destroyed 1 | . 1 . Critical Strikes 1 | . 1 . Destroy 1 | . 1 . Melee Attacks . | . . . Impact . | . . . Slashing . | . . . Piercing . | . . . Sneak Attacks . | . . . Combat Hostiles . | . . . Follow-up Attacks . | . . . Damage Inflicted 1306 | 498 416 392 Guns 1306 | 498 416 392 Cannons . | . . . Explosions . | . . . Melee . | . . . Ramming . | . . . Kinetic 1306 | 498 416 392 Thermal . | . . . Explosive . | . . . Electromagnetic . | . . . Impact . | . . . Slashing . | . . . Piercing . | . . . Highest Corruption . | . . . Average Corruption . | . . . Corruption Purged . | . . . Corruption Blocked . | . . . Overload Shots . | . . . Overflow Damage . | . . . Projectiles . | . . . Explosions . | . . . Melee . | . . . Knockbacks . | . . . Impact . | . . . Kinetic . | . . . Secondary . | . . . Self-Inflicted Damage . | . . . Shots . | . . . Rammed . | . . . Targets Rammed . | . . . Kicked . | . . . Crushed . | . . . Highest Temperature 32 | . 18 32 Average Temperature 10 | . 6 13 Received Heat Transfer 444 | . 153 291 Siege Activations . | . . . Robots Corrupted . | . . . Combat Hostiles . | . . . Parts Fried . | . . . Impact Corruptions . | . . . Robots Melted . | . . . Combat Hostiles . | . . . Parts Melted . | . . . Heat Transferred . | . . . Parts Sabotaged . | . . . Parts Stolen . | . . . Parts Stripped . | . . . Power Chain Reactions . | . . . Alert | -11 -10 -10 ------- Run | Yrd Mat Min Peak Influence 193 | 60 193 145 Initial 75 | . 39 75 Average 86 | 25 118 129 Maximum Alert Level . | . . . Low Security (%) 100 | 100 100 100 Level 1 . | . . . Level 2 . | . . . Level 3 . | . . . Level 4 . | . . . Level 5 . | . . . High Security . | . . . Max Security . | . . . Squads Dispatched 1 | . 1 . Investigation . | . . . Extermination . | . . . Reinforcement 1 | . 1 . Assault . | . . . Garrison . | . . . Intercept . | . . . Searches Triggered . | . . . Construction Impeded . | . . . Haulers Reinforced . | . . . Active Scanning Responses . | . . . Cargo Convoy Interrupts . | . . . Stealth | -11 -10 -10 --------- Run | Yrd Mat Min Distress Signals 2 | . 2 . Communications Jammed . | . . . Distress Signals . | . . . Times Spotted 25 | . 9 16 Peak Tracking Total 17 | . 4 17 Tactical Retreats . | . . . Traps | -11 -10 -10 ------- Run | Yrd Mat Min Traps Triggered . | . . . Indirectly . | . . . Trap Hack Attempts . | . . . Triggered . | . . . Disarmed . | . . . Reprogrammed . | . . . Reused . | . . . Traps Extracted . | . . . Installed . | . . . Triggered . | . . . Machines | -11 -10 -10 ---------- Run | Yrd Mat Min Machines Disabled 1 | . . 1 Max in Single Turn 1 | . . 1 Machines Repaired . | . . . Machines Dismantled . | . . . Machines Sabotaged . | . . . Overloaded Fab Kills . | . . . Hacking | -11 -10 -10 --------- Run | Yrd Mat Min Machines Accessed . | . . . Terminals . | . . . Fabricators . | . . . Repair Stations . | . . . Recycling Units . | . . . Scanalyzers . | . . . Garrison Access . | . . . Total Hacks . | . . . Successful . | . . . Failed . | . . . Catastrophic . | . . . Database Lockouts . | . . . Manual . | . . . Terminals . | . . . Fabricators . | . . . Repair Stations . | . . . Recycling Units . | . . . Scanalyzers . | . . . Garrison Access . | . . . Terminal Hacks . | . . . Fabricator Hacks . | . . . Repair Station Hacks . | . . . Recycling Unit Hacks . | . . . Scanalyzer . | . . . Garrison Access Hacks . | . . . Unauthorized Hacks . | . . . Terminals . | . . . Fabricators . | . . . Repair Stations . | . . . Recycling Units . | . . . Scanalyzers . | . . . Garrison Access . | . . . Data Cores Recovered . | . . . Used . | . . . Hacking Detections . | . . . Full Trace Events . | . . . Feedback Events . | . . . Feedback Blocked . | . . . Robot Schematics Acquired . | . . . Robots Built . | . . . Authchips . | . . . Time . | . . . Total Robot Build Rating . | . . . Part Schematics Acquired . | . . . Parts Built . | . . . Authchips . | . . . Time . | . . . Total Part Build Rating . | . . . Parts Repaired . | . . . Time . | . . . Parts Recycled . | . . . Recycled Matter . | . . . Retrieved Matter . | . . . Retrieved Components . | . . . Parts Scanalyzed . | . . . Part Schematics Acquired . | . . . Parts Damaged . | . . . Bothacking | -11 -10 -10 ------------ Run | Yrd Mat Min Used RIF Installer . | . . . Robots Hacked . | . . . Non-combat . | . . . Combat . | . . . Robot Hacks Applied . | . . . Relay Couplers Released . | . . . Fabnet Peak Effective % . | . . . Robots Rewired . | . . . Allies Hacked . | . . . Hacks Repelled . | . . . Allies | -11 -10 -10 -------- Run | Yrd Mat Min Total Allies . | . . . Largest Group . | . . . Highest-Rated Group . | . . . Highest-Rated Ally . | . . . Total Orders . | . . . Ally Attacks . | . . . Total Damage . | . . . Kills . | . . . Allies Corrupted . | . . . Allies Melted . | . . . Intel | -11 -10 -10 ------- Run | Yrd Mat Min Robot Analysis Total . | . . . Derelict Logs Recovered 1 | . . 1 Drone Launches . | . . . Drone Recoveries . | . . . Exploration | -11 -10 -10 ------------- Run | Yrd Mat Min Turns Passed 692 | 257 246 189 Spaces Moved 321 | 115 110 96 Core 15 | 9 4 2 Treads . | . . . Legs 289 | 106 91 92 Wheels . | . . . Hover 17 | . 15 2 Flight . | . . . Fastest Speed 50 | 50 56 50 Average Speed 115 | 114 113 117 Slowest Speed 150 | 120 150 120 Overloaded Moves . | . . . Propulsion Burnouts . | . . . Robots Hopped . | . . . Cave-ins Triggered . | . . . Exploration Rate (%) 17 | 4 31 16 Regions Visited 2 Branch Regions 1 Pre-discovered Areas . | . . . Known Exits Taken 1 | . 1 . Unknown Exits Taken 1 | 1 . . Scrap Searched . | . . . Spaces Dug . | . . . Terrain Destroyed . | . . . Melee . | . . . Projectile . | . . . AOE . | . . . Terrain Rammed . | . . . Walls Destroyed . | . . . Machines Disabled . | . . . Actions | -11 -10 -10 --------- Run | Yrd Mat Min Total 458 | 163 164 131 Wait 4 | . . 4 Move 319 | 114 109 96 Hop . | . . . Pick Up 4 | 1 3 . Fast Attach 13 | 7 4 2 Attach 1 | . . 1 Detach 4 | . 4 . Swap 1 | . 1 . Drop 5 | . 5 . Fire 107 | 41 38 28 Melee . | . . . Ram . | . . . Kick . | . . . Crush . | . . . Escape Stasis . | . . . Rewire . | . . . Trap . | . . . Miscellaneous . | . . . Route ------- -11/Scrapyard -10/Materials -10/Mines History --------- Turn | Location | Event 12 | -11/Scrapyard | Discovered new exit (range 14) 258 | -11/Scrapyard | Entered Materials 316 | -10/Materials | Build established: Mutant 463 | -10/Materials | Discovered new exit (range 11) 502 | -10/Materials | Identified exit to Mines 504 | -10/Materials | Entered Mines 554 | -10/Mines | Core integrity fell below 50% 566 | -10/Mines | Core integrity fell below 20% 576 | -10/Mines | A weapon hastily lodged in a ceiling crevice suddenly fell to the ground 594 | -10/Mines | Lost 6 parts (2p2n2w) 668 | -10/Mines | Learned 4 Materials zone layouts 671 | -10/Mines | Assembled infested the area 676 | -10/Mines | Assisted by a Guerilla fighting off Assembled 693 | -10/Mines | Destroyed by as-63391 with Assembled Blade Last Messages --------------- 00668_ Acquired derelict log, extracted data. Data stored: Materials zone layouts (x4). 00671_ ALERT: Infestation in the mines, dispatching Demolisher response squad. 00676_ A derelict emerges from the shadows: "You need to get out of here! I've been tracking a group of Assembled to figure out where they're coming from, and they're closing on this area, come on!" 00682_ R-06 Scavenger destroyed. 00683_ HG-803(h): "I'll hold them off! Go on ahead or try to find another way!" 00683_ HV Slug penetrates as-16174. 00683_ as-16174 suffers critical hit (Destroy). 00683_ as-16174 destroyed. 00683_ HV Slug penetrates Wall. 00686_ HV Slug penetrates as-21106. 00686_ HV Slug penetrates Wall. 00690_ as-64757 suffers critical hit (Destroy). 00691_ HG-803(h) destroyed. 00691_ as-85600 sneak attacks. 00691_ U-05 Engineer destroyed. Map ----- +----------------------------------------------------+ | ????????????# #????????????????? | | ????????????# """ """ #????????????????? | | ????????????# """ """ #????????????????? | | ????????????# """ """ #????????????????? | | ????????????# % #????????????????? | | ????????????# """ ! " #????????????????? | | ????????????# """ """ """ #????????????????? | | ????????????# """ "" """ #????????????????? | | ????????????# #????????????????? | | ????????????########### ###?#####???????#??? | | ????????????????????## !##### ###### ##?? | | ????????????????????# [ #?? | | ????????????????????# #### #?? | | ????????????????????# #?# #### #?? | | ????????????????????# #?# ##???????#?? | | ????????????????????# #?## ##??????????? | | ????????????????????# #??# ##???????????? | | ????????????????????## ##### #????????????? | | ?????????????????######### #????????????? | | ????????????????## ##???# ####????????????? | | ???????????????## ##??# #???????????????? | | ??????????????## * #### #???????????????? | | ??????????????# a!=a ##??????????????? | | ??????????????# xxx= a #??????????????? | | ??????????????#%=x x### a #??????????????? | | ?????????????#"#%xx##?## @ ##??????????????? | | ??????????????#"#x##???# #???????????????? | | ??????????????###x#????# #??????????????? | | ????????????????# #????# #?????????????? | | ????????????????# #????# #?????????????? | | ????????????????# #????## ???X????????? | | ????????????????# ??????## ???????????? | | ????????????????# ????????## ####??????????? | | ????????????????# ?????????? #?????????????? | | ????????????????# ?????????? #?????????????? | | ?????????????????x?????????? ?????????????? | | ????????????????? ???????????#?????????????? | | ????????????????? ?????????????????????????? | | ???????????????????????????????????????????? | | ???????????????????????????????????????????? | | ???????????????????????????????????????????? | | ???????????????????????????????????????????? | | ???????????????????????????????????????????? | | ???????????????????????????????????????????? | | ???????????????????????????????????????????? | | ???????????????????????????????????????????? | | ???????????????????????????????????????????? | | ???????????????????????????????????????????? | | ???????????????????????????????????????????? | | ???????????????????????????????????????????? | +----------------------------------------------------+ Best States ------------- Heat Dissipation 25 Energy Generation 10 Energy Capacity 250 Matter Stores 300 Matter Capacity 300 Sight Range 16 Robot Scan Range 14 Terrain Scan Range 16 Terrain Scan Density 10 Evasion (%) 55 Item Schematics ----------------- None Robot Schematics ------------------ None Fabricated ------------ Nothing Alien Tech Used ----------------- None Achievements -------------- None Challenges ------------ None Game ------ Seed AssaultCoreLog Manual? 0 Play Time 00:09:09 Cumulative 14.7 hours Start 2024.04.02 @ 23:32:43 End 2024.04.02 @ 23:46:12 Sessions 1 Manual Loads 0 Difficulty Rogue Special Mode None Game No. 43 Rogue 41 Adventurer 2 Explorer 0 Win Type - Total 0 Types 0/0/0/0/0/0/0/0/0 Lore% 16 Gallery% 19 Achievement% 18 Wizard Run 0 Options --------- Layout 0 ASCII 0 Keyboard 1 Movement Arrows Keybinds 0 Fullscreen 2 Font 18/SmallcapsGlow Map View 76x50 Zoom Use 0% Tactical HUD 1 Map Filters NONE Filters NONE Steam 1 RUN: e96b5ad1-3e00-461e-9bfa-36ae4025605d